fUSD/lending_fUSD_20260630
["ID","MTS","AMOUNT","RATE_DAILY","PERIOD"]
[426767443,1782796232000,-151.0,0.00013698,2]
[426767444,1782796232000,-500.0,0.00013698,2]
[426767447,1782796232000,-500.0,0.00013698,2]
[426767449,1782796232000,-500.0,0.00013698,2]
[426767446,1782796232000,-500.0,0.00013698,2]
[426767518,1782796233000,-500.0,0.00013698,2]
[426767514,1782796233000,-500.0,0.00013698,2]
[426767516,1782796233000,-500.0,0.00013698,2]
[426767510,1782796233000,-515.65132673,0.00013698,2]
[426767517,1782796233000,-500.0,0.00013698,2]
[426767509,1782796233000,-502.71254218,0.00013698,2]
[426767513,1782796233000,-500.0,0.00013698,2]
[426767515,1782796233000,-500.0,0.00013698,2]
[426767508,1782796233000,-500.0,0.00013698,2]
[426767512,1782796233000,-500.0,0.00013698,2]
[426767507,1782796233000,-500.0,0.00013698,2]
[426767511,1782796233000,-500.0,0.00013698,2]
[426767519,1782796233000,-500.0,0.00013698,2]
[426767528,1782796233000,-500.0,0.00013698,2]
[426767524,1782796233000,-500.0,0.00013698,2]
[426767526,1782796233000,-500.0,0.00013698,2]
[426767522,1782796233000,-500.0,0.00013698,2]
[426767523,1782796233000,-500.0,0.00013698,2]
[426767525,1782796233000,-500.0,0.00013698,2]
[426767529,1782796233000,-500.0,0.00013698,2]
[426767531,1782796233000,-2604.76,0.00013698,2]
[426767527,1782796233000,-500.0,0.00013698,2]
[426767530,1782796233000,-2604.76,0.00013698,2]
[426767533,1782796233000,-2604.76,0.00013698,2]
[426767506,1782796233000,-500.0,0.00013698,2]
[426767534,1782796233000,-500.0,0.00013698,2]
[426767520,1782796233000,-513.91569987,0.00013698,2]
[426767505,1782796233000,-500.0,0.00013698,2]
[426767483,1782796233000,-500.0,0.00013698,2]
[426767504,1782796233000,-507.08313059,0.00013698,2]
[426767532,1782796233000,-2604.76,0.00013698,2]
[426767482,1782796233000,-294.12807726,0.00013698,2]
[426767475,1782796233000,-500.0,0.00013698,2]
[426767481,1782796233000,-500.0,0.00013698,2]
[426767478,1782796233000,-500.0,0.00013698,2]
[426767477,1782796233000,-500.0,0.00013698,2]
[426767479,1782796233000,-500.0,0.00013698,2]
[426767480,1782796233000,-500.0,0.00013698,2]
[426767476,1782796233000,-500.0,0.00013698,2]
[426767486,1782796233000,-500.0,0.00013698,2]
[426767484,1782796233000,-500.0,0.00013698,2]
[426767485,1782796233000,-500.0,0.00013698,2]
[426767489,1782796233000,-500.0,0.00013698,2]
[426767503,1782796233000,-500.0,0.00013698,2]
[426767487,1782796233000,-500.0,0.00013698,2]
[426767490,1782796233000,-500.0,0.00013698,2]
[426767491,1782796233000,-500.0,0.00013698,2]
[426767493,1782796233000,-507.16772841,0.00013698,2]
[426767494,1782796233000,-509.66874055,0.00013698,2]
[426767495,1782796233000,-500.0,0.00013698,2]
[426767492,1782796233000,-500.0,0.00013698,2]
[426767497,1782796233000,-500.0,0.00013698,2]
[426767496,1782796233000,-500.0,0.00013698,2]
[426767498,1782796233000,-500.0,0.00013698,2]
[426767500,1782796233000,-500.44846455,0.00013698,2]
[426767502,1782796233000,-500.0,0.00013698,2]
[426767501,1782796233000,-503.28685372,0.00013698,2]
[426767499,1782796233000,-509.80487002,0.00013698,2]
[426767488,1782796233000,-500.0,0.00013698,2]
[426767536,1782796233000,-500.0,0.00013698,2]
[426767521,1782796233000,-500.76935271,0.00013698,2]
[426767537,1782796233000,-500.0,0.00013698,2]
[426767569,1782796233000,-216.93823,0.000138,2]
[426767572,1782796233000,-216.93822,0.000138,2]
[426767571,1782796233000,-216.93823,0.000138,2]
[426767574,1782796233000,-170.37,0.00013823,2]
[426767573,1782796233000,-151.0,0.00013816,2]
[426767575,1782796233000,-1456.67021383,0.00013833,2]
[426767577,1782796233000,-151.0,0.00013874,2]
[426767576,1782796233000,-6111.0,0.00013874,2]
[426767578,1782796233000,-1000.0,0.000139,2]
[426767579,1782796233000,-317.0,0.000139,2]
[426767580,1782796233000,-890.0,0.000139,2]
[426767582,1782796233000,-9002.24796517,0.000139,2]
[426767583,1782796233000,-500.0,0.00013929,2]
[426767581,1782796233000,-310.0,0.000139,2]
[426767584,1782796233000,-9156.00978496,0.0001393,2]
[426767585,1782796233000,-2282.324162,0.0001393,2]
[426767586,1782796233000,-2282.324162,0.0001393,2]
[426767592,1782796233000,-383.349137,0.0001393,2]
[426767587,1782796233000,-2282.324162,0.0001393,2]
[426767588,1782796233000,-2282.324162,0.0001393,2]
[426767590,1782796233000,-383.349137,0.0001393,2]
[426767593,1782796233000,-15000.0,0.00013933,2]
[426767591,1782796233000,-383.349137,0.0001393,2]
[426767594,1782796233000,-500.0,0.00013989,2]
[426767595,1782796233000,-500.0,0.00013989,2]
[426767596,1782796233000,-500.0,0.00013989,2]
[426767539,1782796233000,-4342.82,0.00013699,2]
[426767570,1782796233000,-216.93822,0.000138,2]
[426767568,1782796233000,-216.93823,0.0001379,2]
[426767589,1782796233000,-383.349137,0.0001393,2]
[426767566,1782796233000,-1119.15950799,0.00013699,15]
[426767535,1782796233000,-500.0,0.00013698,2]
[426767565,1782796233000,-1000.0,0.00013699,2]
[426767538,1782796233000,-151.0,0.00013699,2]
[426767543,1782796233000,-383.349137,0.00013699,2]
[426767544,1782796233000,-383.349137,0.00013699,2]
[426767545,1782796233000,-266.89,0.00013699,2]
[426767541,1782796233000,-384.31,0.00013699,2]
[426767540,1782796233000,-461.18,0.00013699,2]
[426767546,1782796233000,-383.349137,0.00013699,2]
[426767547,1782796233000,-383.349137,0.00013699,2]
[426767548,1782796233000,-266.89,0.00013699,2]
[426767552,1782796233000,-151.0,0.00013699,2]
[426767558,1782796233000,-440.30440379,0.00013699,2]
[426767550,1782796233000,-889.64,0.00013699,2]
[426767542,1782796233000,-320.26,0.00013699,2]
[426767554,1782796233000,-350.01,0.00013699,2]
[426767567,1782796233000,-216.93822,0.0001379,2]
[426767549,1782796233000,-177.92,0.00013699,2]
[426767563,1782796233000,-151.0,0.00013699,2]
[426767561,1782796233000,-151.0,0.00013699,2]
[426767562,1782796233000,-151.0,0.00013699,2]
[426767559,1782796233000,-151.0,0.00013699,2]
[426767564,1782796233000,-1000.0,0.00013699,2]
[426767555,1782796233000,-231.55342354,0.00013699,10]
[426767557,1782796233000,-29267.84,0.00013699,2]
[426767553,1782796233000,-151.0,0.00013699,2]
[426767556,1782796233000,-277.86410825,0.00013699,10]
[426767551,1782796233000,-200.0,0.00013699,2]
[426767560,1782796233000,-151.0,0.00013699,2]
[426767637,1782796234000,-573.9314856,0.0001457,2]
[426767634,1782796234000,-573.9314856,0.00014471,2]
[426767636,1782796234000,-181.2884264,0.00014533,2]
[426767632,1782796234000,-573.9314856,0.0001444,2]
[426767630,1782796234000,-383.349137,0.00014346,2]
[426767631,1782796234000,-10000.0,0.00014346,2]
[426767628,1782796234000,-383.349137,0.00014346,2]
[426767627,1782796234000,-383.349137,0.00014346,2]
[426767629,1782796234000,-383.349137,0.00014346,2]
[426767633,1782796234000,-350.0,0.00014451,2]
[426767638,1782796234000,-1500.0,0.000146,2]
[426767643,1782796234000,-524.03915587,0.00014664,2]
[426767640,1782796234000,-167.91,0.00014602,2]
[426767635,1782796234000,-231.55342354,0.00014521,10]
[426767642,1782796234000,-565.91795168,0.00014627,2]
[426767641,1782796234000,-573.9314856,0.00014606,2]
[426767644,1782796234000,-524.03915587,0.00014688,2]
[426767647,1782796234000,-524.03915587,0.00014797,2]
[426767646,1782796234000,-1252.0,0.00014779,2]
[426767648,1782796234000,-350.0,0.00014808,2]
[426767649,1782796234000,-350.0,0.00014815,2]
[426767650,1782796234000,-350.0,0.00014832,2]
[426767623,1782796234000,-2282.324162,0.00014346,2]
[426767651,1782796234000,-11059.04990957,0.000149,2]
[426767639,1782796234000,-9852.22668232,0.000146,2]
[426767626,1782796234000,-2282.324162,0.00014346,2]
[426767607,1782796234000,-32246.99967729,0.00014014,2]
[426767622,1782796234000,-2282.324162,0.00014346,2]
[426767645,1782796234000,-350.0,0.00014713,2]
[426767597,1782796234000,-500.0,0.00013989,2]
[426767602,1782796234000,-500.0,0.00013989,2]
[426767598,1782796234000,-500.0,0.00013989,2]
[426767600,1782796234000,-500.0,0.00013989,2]
[426767601,1782796234000,-2604.76,0.00013989,2]
[426767603,1782796234000,-6625.20460944,0.0001399,2]
[426767604,1782796234000,-22166.28131338,0.0001399,2]
[426767599,1782796234000,-500.0,0.00013989,2]
[426767605,1782796234000,-1500.0,0.00014,2]
[426767606,1782796234000,-895.064786,0.00014,2]
[426767608,1782796234000,-151.0,0.00014014,2]
[426767613,1782796234000,-6111.0,0.00014043,2]
[426767612,1782796234000,-151.0,0.00014014,2]
[426767609,1782796234000,-151.0,0.00014014,2]
[426767615,1782796234000,-15000.0,0.00014047,2]
[426767611,1782796234000,-151.0,0.00014014,2]
[426767616,1782796234000,-350.0,0.00014066,2]
[426767617,1782796234000,-10000.0,0.0001408,2]
[426767614,1782796234000,-151.0,0.00014047,2]
[426767618,1782796234000,-298.341595,0.00014146,2]
[426767619,1782796234000,-606.99,0.00014157,2]
[426767621,1782796234000,-153.98,0.00014184,2]
[426767620,1782796234000,-168.69,0.00014166,2]
[426767624,1782796234000,-1787.18038642,0.00014346,2]
[426767625,1782796234000,-495.14377558,0.00014346,2]
[426767652,1782796234000,-1600.0,0.000149,5]
[426767610,1782796234000,-156.735313,0.00014014,2]
[426767654,1782796234000,-5582.0,0.00014986,2]
[426767686,1782796234000,-500.0,0.00014999,2]
[426767684,1782796234000,-500.0,0.00014999,2]
[426767683,1782796234000,-500.0,0.00014999,2]
[426767685,1782796234000,-500.0,0.00014999,2]
[426767682,1782796234000,-500.54376418,0.00014999,2]
[426767689,1782796234000,-163.121945,0.00014999,2]
[426767690,1782796234000,-581.73724219,0.00014999,2]
[426767694,1782796234000,-500.0,0.00014999,2]
[426767698,1782796234000,-500.0,0.00014999,2]
[426767693,1782796234000,-500.0,0.00014999,2]
[426767691,1782796234000,-500.0,0.00014999,2]
[426767697,1782796234000,-500.0,0.00014999,2]
[426767696,1782796234000,-500.0,0.00014999,2]
[426767695,1782796234000,-500.0,0.00014999,2]
[426767700,1782796234000,-500.0,0.00014999,2]
[426767699,1782796234000,-500.0,0.00014999,2]
[426767692,1782796234000,-500.0,0.00014999,2]
[426767701,1782796234000,-500.0,0.00014999,2]
[426767702,1782796234000,-500.0,0.00014999,2]
[426767706,1782796234000,-500.0,0.00014999,2]
[426767707,1782796234000,-671.73840372,0.00014999,2]
[426767705,1782796234000,-500.0,0.00014999,2]
[426767709,1782796234000,-50334.18346428,0.00015,2]
[426767704,1782796234000,-2604.76,0.00014999,2]
[426767708,1782796234000,-44965.04141004,0.00015,2]
[426767681,1782796234000,-500.0,0.00014999,2]
[426767678,1782796234000,-500.0,0.00014999,2]
[426767703,1782796234000,-2604.76,0.00014999,2]
[426767687,1782796234000,-500.0,0.00014999,2]
[426767680,1782796234000,-500.0,0.00014999,2]
[426767655,1782796234000,-39304.35096533,0.00014989,2]
[426767656,1782796234000,-153.991655,0.00014989,2]
[426767657,1782796234000,-151.0,0.00014989,2]
[426767659,1782796234000,-151.0,0.00014989,2]
[426767662,1782796234000,-500.0,0.00014998,2]
[426767664,1782796234000,-500.0,0.00014998,2]
[426767658,1782796234000,-151.0,0.00014989,2]
[426767661,1782796234000,-500.0,0.00014998,2]
[426767663,1782796234000,-500.0,0.00014998,2]
[426767660,1782796234000,-1311.41651589,0.0001499,2]
[426767665,1782796234000,-500.0,0.00014998,2]
[426767666,1782796234000,-500.0,0.00014998,2]
[426767653,1782796234000,-292.29533509,0.00014908,2]
[426767667,1782796234000,-500.0,0.00014998,2]
[426767670,1782796234000,-500.0,0.00014998,2]
[426767673,1782796234000,-500.0,0.00014998,2]
[426767672,1782796234000,-500.0,0.00014998,2]
[426767668,1782796234000,-500.0,0.00014998,2]
[426767688,1782796234000,-518.16800403,0.00014999,2]
[426767671,1782796234000,-500.0,0.00014998,2]
[426767675,1782796234000,-500.0,0.00014998,2]
[426767674,1782796234000,-2604.76,0.00014998,2]
[426767677,1782796234000,-500.0,0.00014999,2]
[426767676,1782796234000,-500.0,0.00014999,2]
[426767679,1782796234000,-500.0,0.00014999,2]
[426767669,1782796234000,-500.0,0.00014998,2]
[426767710,1782796235000,-177547.41796732,0.00015,2]
[426767711,1782796235000,-500.0,0.00015,2]
[426767712,1782796235000,-350.0,0.00015,2]
[426767716,1782796235000,-2019.00692458,0.00015,2]
[426767715,1782796235000,-5584.99630965,0.00015,2]
[426767713,1782796235000,-2453.05094011,0.00015,2]
[426767717,1782796235000,-8868.97519864,0.00015,2]
[426767714,1782796235000,-1734.04080038,0.00015,2]
[426767796,1782796239000,-303.02,0.00010072,2]
[426767797,1782796239000,-303.02,0.00010123,2]
[426767799,1782796239000,-303.02,0.00010224,2]
[426767798,1782796239000,-303.02,0.00010173,2]
[426767805,1782796239000,-303.02,0.00010527,2]
[426767800,1782796239000,-303.02,0.00010274,2]
[426767803,1782796239000,-303.02,0.00010426,2]
[426767807,1782796239000,-163.28,0.00010628,2]
[426767804,1782796239000,-303.02,0.00010476,2]
[426767801,1782796239000,-303.02,0.00010325,2]
[426767806,1782796239000,-303.02,0.00010577,2]
[426767802,1782796239000,-303.02,0.00010375,2]
[426767809,1782796240000,-303.02,0.00010678,2]
[426767808,1782796240000,-139.74,0.00010628,2]
[426767811,1782796240000,-899.59215972,0.00011869,2]
[426767812,1782796240000,-303.02,0.00010729,2]
[426767813,1782796240000,-1631.698091,0.00011869,2]
[426767810,1782796240000,-14557.505044,0.00011869,2]
[426767817,1782796240000,-547.4565743,0.00011869,2]
[426767814,1782796240000,-4325.79317691,0.00011869,2]
[426767816,1782796240000,-1409.0,0.00011869,2]
[426767818,1782796240000,-3061.84949362,0.00011869,2]
[426767819,1782796240000,-5821.35679425,0.00011869,2]
[426767815,1782796240000,-1245.87472679,0.00011869,2]
[426767825,1782796242000,-303.02,0.00010779,2]
[426767826,1782796242000,-303.02,0.0001083,2]
[426767827,1782796242000,-2722.52787694,0.00011869,2]
[426767829,1782796245000,-303.02,0.0001088,2]
[426767830,1782796245000,-303.02,0.00010931,2]
[426767831,1782796245000,-303.02,0.00010981,2]
[426767832,1782796245000,-303.02,0.00011032,2]
[426767833,1782796246000,-295.77145568,0.00011869,2]
[426767834,1782796246000,-1205.8904546,0.00013406,2]
[426767838,1782796628000,666.54683452,8.243e-05,2]
[426767839,1782796629000,600.02064829,8.241e-05,2]
[426767840,1782796651000,150.0,8.726e-05,2]
[426767841,1782796673000,-242.73714797,8.995e-05,2]
[426767854,1782796686000,-143.96596803,9.041e-05,2]
[426767842,1782796686000,-1398.26285203,8.995e-05,2]
[426767844,1782796686000,-392.60342668,9.041e-05,2]
[426767843,1782796686000,-250.0,9.018e-05,2]
[426767847,1782796686000,-500.0,9.041e-05,2]
[426767848,1782796686000,-500.0,9.041e-05,2]
[426767845,1782796686000,-500.0,9.041e-05,2]
[426767846,1782796686000,-354.62991798,9.041e-05,2]
[426767850,1782796686000,-500.0,9.041e-05,2]
[426767851,1782796686000,-500.0,9.041e-05,2]
[426767853,1782796686000,-358.80068731,9.041e-05,2]
[426767852,1782796686000,-500.0,9.041e-05,2]
[426767849,1782796686000,-500.0,9.041e-05,2]
[426767858,1782796688000,-500.0,9.041e-05,2]
[426767855,1782796688000,-150.0,9.04e-05,2]
[426767857,1782796688000,-514.44397999,9.041e-05,2]
[426767856,1782796688000,-60.66526271,9.041e-05,2]
[426767860,1782796688000,-500.0,9.041e-05,2]
[426767861,1782796688000,-500.0,9.041e-05,2]
[426767862,1782796688000,-500.0,9.041e-05,2]
[426767864,1782796688000,-500.0,9.041e-05,2]
[426767863,1782796688000,-500.0,9.041e-05,2]
[426767865,1782796688000,-500.0,9.041e-05,2]
[426767866,1782796688000,-274.76900607,9.041e-05,2]
[426767859,1782796688000,-500.12175123,9.041e-05,2]
[426767878,1782796689000,-240.33640906,9.041e-05,2]
[426767875,1782796689000,-500.0,9.041e-05,2]
[426767876,1782796689000,-500.0,9.041e-05,2]
[426767877,1782796689000,-259.66359094,9.041e-05,2]
[426767871,1782796689000,-500.0,9.041e-05,2]
[426767870,1782796689000,-500.0,9.041e-05,2]
[426767873,1782796689000,-515.10541513,9.041e-05,2]
[426767874,1782796689000,-500.0,9.041e-05,2]
[426767868,1782796689000,-500.0,9.041e-05,2]
[426767867,1782796689000,-225.23099393,9.041e-05,2]
[426767872,1782796689000,-500.0,9.041e-05,2]
[426767880,1782796689000,-500.0,9.041e-05,2]
[426767869,1782796689000,-500.0,9.041e-05,2]
[426767881,1782796689000,-500.0,9.041e-05,2]
[426767890,1782796689000,-500.0,9.041e-05,2]
[426767891,1782796689000,-500.0,9.041e-05,2]
[426767892,1782796689000,-500.0,9.041e-05,2]
[426767889,1782796689000,-240.33640906,9.041e-05,2]
[426767887,1782796689000,-500.0,9.041e-05,2]
[426767879,1782796689000,-500.0,9.041e-05,2]
[426767886,1782796689000,-500.0,9.041e-05,2]
[426767885,1782796689000,-500.0,9.041e-05,2]
[426767884,1782796689000,-500.0,9.041e-05,2]
[426767882,1782796689000,-500.0,9.041e-05,2]
[426767883,1782796689000,-500.0,9.041e-05,2]
[426767888,1782796689000,-259.66359094,9.041e-05,2]
[426767905,1782796690000,-500.0,9.041e-05,2]
[426767907,1782796690000,-500.0,9.041e-05,2]
[426767904,1782796690000,-500.0,9.041e-05,2]
[426767906,1782796690000,-500.0,9.041e-05,2]
[426767901,1782796690000,-500.0,9.041e-05,2]
[426767902,1782796690000,-500.0,9.041e-05,2]
[426767903,1782796690000,-500.0,9.041e-05,2]
[426767897,1782796690000,-500.0,9.041e-05,2]
[426767898,1782796690000,-500.0,9.041e-05,2]
[426767899,1782796690000,-357.54644143,9.041e-05,2]
[426767896,1782796690000,-500.0,9.041e-05,2]
[426767910,1782796690000,-357.54644143,9.041e-05,2]
[426767893,1782796690000,-500.0,9.041e-05,2]
[426767894,1782796690000,-402.11714951,9.041e-05,2]
[426767900,1782796690000,-142.45355857,9.041e-05,2]
[426767895,1782796690000,-500.0,9.041e-05,2]
[426767909,1782796690000,-500.0,9.041e-05,2]
[426767911,1782796690000,-142.45355857,9.041e-05,2]
[426767925,1782796690000,-500.0,9.041e-05,2]
[426767908,1782796690000,-500.0,9.041e-05,2]
[426767924,1782796690000,-177.24093239,9.041e-05,2]
[426767923,1782796690000,-322.75906761,9.041e-05,2]
[426767922,1782796690000,-500.0,9.041e-05,2]
[426767918,1782796690000,-500.0,9.041e-05,2]
[426767921,1782796690000,-500.0,9.041e-05,2]
[426767926,1782796690000,-385.57239238,9.041e-05,2]
[426767919,1782796690000,-279.94200557,9.041e-05,2]
[426767917,1782796690000,-500.0,9.041e-05,2]
[426767914,1782796690000,-195.2064676,9.041e-05,2]
[426767915,1782796690000,-240.2980811,9.041e-05,2]
[426767916,1782796690000,-500.0,9.041e-05,2]
[426767913,1782796690000,-500.0,9.041e-05,2]
[426767912,1782796690000,-413.1805648,9.041e-05,2]
[426767920,1782796690000,-406.16025475,9.041e-05,2]
[426767938,1782796691000,-500.0,9.041e-05,2]
[426767936,1782796691000,-231.02198154,9.041e-05,2]
[426767934,1782796691000,-500.0,9.041e-05,2]
[426767935,1782796691000,-268.97801846,9.041e-05,2]
[426767933,1782796691000,-500.0,9.041e-05,2]
[426767929,1782796691000,-500.0,9.041e-05,2]
[426767931,1782796691000,-500.0,9.041e-05,2]
[426767928,1782796691000,-500.0,9.041e-05,2]
[426767927,1782796691000,-500.0,9.041e-05,2]
[426767937,1782796691000,-500.0,9.041e-05,2]
[426767932,1782796691000,-500.0,9.041e-05,2]
[426767941,1782796691000,-500.0,9.041e-05,2]
[426767930,1782796691000,-168.20865677,9.041e-05,2]
[426767939,1782796691000,-500.0,9.041e-05,2]
[426767951,1782796691000,-212.40242458,9.041e-05,2]
[426767950,1782796691000,-500.0,9.041e-05,2]
[426767952,1782796691000,-179.39440191,9.042e-05,2]
[426767949,1782796691000,-500.0,9.041e-05,2]
[426767948,1782796691000,-500.0,9.041e-05,2]
[426767940,1782796691000,-500.0,9.041e-05,2]
[426767945,1782796691000,-500.0,9.041e-05,2]
[426767944,1782796691000,-500.0,9.041e-05,2]
[426767942,1782796691000,-500.0,9.041e-05,2]
[426767947,1782796691000,-231.02198154,9.041e-05,2]
[426767946,1782796691000,-268.97801846,9.041e-05,2]
[426767943,1782796691000,-500.0,9.041e-05,2]
[426767959,1782796692000,-5000.0,9.043e-05,2]
[426767958,1782796692000,-5000.0,9.043e-05,2]
[426767957,1782796692000,-5000.0,9.043e-05,2]
[426767955,1782796692000,-181.04435743,9.042e-05,2]
[426767956,1782796692000,-2046.13683454,9.043e-05,2]
[426767954,1782796692000,-500.0,9.042e-05,2]
[426767953,1782796692000,-150.0,9.042e-05,2]
[426767960,1782796693000,-5000.0,9.043e-05,2]
[426767961,1782796693000,-5000.0,9.043e-05,2]
[426767962,1782796693000,-5000.0,9.043e-05,2]
[426767965,1782796694000,-5000.0,9.043e-05,2]
[426767964,1782796694000,-5000.0,9.043e-05,2]
[426767963,1782796694000,-5000.0,9.043e-05,2]
[426767968,1782796695000,-5000.0,9.043e-05,2]
[426767967,1782796695000,-5000.0,9.043e-05,2]
[426767966,1782796695000,-5000.0,9.043e-05,2]
[426767970,1782796696000,-5000.0,9.043e-05,2]
[426767971,1782796696000,-5000.0,9.043e-05,2]
[426767969,1782796696000,-5000.0,9.043e-05,2]
[426767976,1782796697000,-108.77933245,9.073e-05,2]
[426767974,1782796697000,-4710.27316546,9.043e-05,2]
[426767975,1782796697000,-180.94750209,9.073e-05,2]
[426767973,1782796697000,-5000.0,9.043e-05,2]
[426767972,1782796697000,-5000.0,9.043e-05,2]
[426767979,1782796698000,-150.0,9.084e-05,2]
[426767978,1782796698000,-277.69042681,9.074e-05,2]
[426767980,1782796698000,-150.0,9.174e-05,2]
[426767977,1782796698000,-279.7918928,9.073e-05,2]
[426767981,1782796698000,-202.65,9.187e-05,2]
[426767982,1782796698000,-223.0,9.264e-05,2]
[426767984,1782796698000,-365.10739562,9.298e-05,2]
[426767983,1782796698000,-164.08,9.272e-05,2]
[426767985,1782796698000,-500.0,9.316e-05,2]
[426767989,1782796698000,-302.72,9.649e-05,2]
[426767990,1782796698000,-302.72,9.694e-05,2]
[426767988,1782796698000,-302.72,9.604e-05,2]
[426767986,1782796698000,-269.89,9.467e-05,2]
[426767997,1782796698000,-4096.20018842,9.874e-05,2]
[426767996,1782796698000,-500.0,9.874e-05,2]
[426767995,1782796698000,-403.79981158,9.864e-05,2]
[426767993,1782796698000,-302.72,9.829e-05,2]
[426767992,1782796698000,-302.72,9.784e-05,2]
[426767994,1782796698000,-101.47028477,9.864e-05,2]
[426767991,1782796698000,-302.72,9.739e-05,2]
[426767987,1782796698000,-500.0,9.59e-05,2]
[426767999,1782796699000,-5000.0,9.874e-05,2]
[426767998,1782796699000,-5000.0,9.874e-05,2]
[426768002,1782796700000,-5000.0,9.874e-05,2]
[426768001,1782796700000,-5000.0,9.874e-05,2]
[426768000,1782796700000,-5000.0,9.874e-05,2]
[426768004,1782796701000,-5000.0,9.874e-05,2]
[426768003,1782796701000,-5000.0,9.874e-05,2]
[426768005,1782796701000,-5000.0,9.874e-05,2]
[426768006,1782796701000,-5000.0,9.874e-05,2]
[426768008,1782796702000,-5000.0,9.874e-05,2]
[426768007,1782796702000,-5000.0,9.874e-05,2]
[426768011,1782796703000,-5000.0,9.874e-05,2]
[426768010,1782796703000,-5000.0,9.874e-05,2]
[426768009,1782796703000,-5000.0,9.874e-05,2]
[426768013,1782796704000,-5000.0,9.874e-05,2]
[426768012,1782796704000,-5000.0,9.874e-05,2]
[426768014,1782796705000,-5000.0,9.874e-05,2]
[426768016,1782796705000,-5000.0,9.874e-05,2]
[426768015,1782796705000,-5000.0,9.874e-05,2]
[426768017,1782796706000,-5000.0,9.874e-05,2]
[426768019,1782796706000,-5000.0,9.874e-05,2]
[426768018,1782796706000,-5000.0,9.874e-05,2]
[426768020,1782796707000,-5000.0,9.874e-05,2]
[426768021,1782796707000,-5000.0,9.874e-05,2]
[426768024,1782796708000,-5000.0,9.874e-05,2]
[426768023,1782796708000,-5000.0,9.874e-05,2]
[426768022,1782796708000,-5000.0,9.874e-05,2]
[426768027,1782796709000,-5000.0,9.874e-05,2]
[426768026,1782796709000,-5000.0,9.874e-05,2]
[426768025,1782796709000,-5000.0,9.874e-05,2]
[426768030,1782796710000,-5000.0,9.874e-05,2]
[426768029,1782796710000,-5000.0,9.874e-05,2]
[426768028,1782796710000,-5000.0,9.874e-05,2]
[426768032,1782796711000,-5000.0,9.874e-05,2]
[426768031,1782796711000,-5000.0,9.874e-05,2]
[426768033,1782796712000,-5000.0,9.874e-05,2]
[426768035,1782796712000,-5000.0,9.874e-05,2]
[426768034,1782796712000,-5000.0,9.874e-05,2]
[426768036,1782796713000,-5000.0,9.874e-05,2]
[426768037,1782796713000,-5000.0,9.874e-05,2]
[426768040,1782796714000,-5000.0,9.874e-05,2]
[426768039,1782796714000,-5000.0,9.874e-05,2]
[426768038,1782796714000,-5000.0,9.874e-05,2]
[426768043,1782796715000,-5000.0,9.874e-05,2]
[426768042,1782796715000,-5000.0,9.874e-05,2]
[426768041,1782796715000,-5000.0,9.874e-05,2]
[426768045,1782796716000,-5000.0,9.874e-05,2]
[426768044,1782796716000,-5000.0,9.874e-05,2]
[426768046,1782796717000,-5000.0,9.874e-05,2]
[426768048,1782796717000,-5000.0,9.874e-05,2]
[426768047,1782796717000,-5000.0,9.874e-05,2]
[426768051,1782796718000,-5000.0,9.874e-05,2]
[426768050,1782796718000,-5000.0,9.874e-05,2]
[426768049,1782796718000,-5000.0,9.874e-05,2]
[426768053,1782796719000,-5000.0,9.874e-05,2]
[426768052,1782796719000,-5000.0,9.874e-05,2]
[426768054,1782796720000,-5000.0,9.874e-05,2]
[426768056,1782796720000,-5000.0,9.874e-05,2]
[426768055,1782796720000,-5000.0,9.874e-05,2]